[Event "Charlotte Spring IM-C 2024"]
[Site "Charlotte"]
[Date "2024.03.28"]
[Round "2.2"]
[White "Fierro Baquero, Martha L."]
[Black "Komarov, Dimitri"]
[Result "1/2-1/2"]
[ECO "A09"]
[WhiteElo "2283"]
[BlackElo "2448"]
[Annotator "TA"]
[PlyCount "42"]
[EventDate "2024.03.27"]
[EventType "tourn"]
[EventCountry "USA"]
[SourceTitle "playchess.com"]
[Source "ChessBase"]
[SourceQuality "1"]
[TimeControl "5400+30"]

{[%evp 9,42,-27,-28,-37,-41,-37,-27,-29,-33,-39,-27,-42,-29,-33,-20,-24,-12,-16,-21,-17,-17,-14,-9,-12,0,-13,-19,-7,0,0,0,-23,0,5,0]} 1. g3 {[%emt 0:06:44]} d5 {[%emt 0:00:06]} 2. Bg2 {[%emt 0:00:15]} e5 {[%emt 0:00:08]} 3. c4 {[%emt 0:00:25]} d4 {[%emt 0:00:10]} 4. d3 {[%emt 0:00:11]} Nc6 {[%emt 0:00:49]} 5. Nf3 {[%emt 0:00:07]} Bb4+ {[%emt 0:00:14]} 6. Nfd2 {[%emt 0:00:28]} Be7 {[%emt 0:07:35]} 7. O-O {[%emt 0:00:10]} Nf6 {[%emt 0:00:06]} 8. Na3 {[%emt 0:01:42] Black has an edge.} O-O {[%emt 0:00:13]} 9. Nc2 {[%emt 0:00:12]} Re8 {[%emt 0:02:09]} 10. Rb1 {[%emt 0:06:26]} a5 {[%emt 0:00:39]} 11. b3 {[%emt 0:03:13][%cal Bb2b3,Bb3b4,Bb4b5][%mdl 32]} Bf5 {[%emt 0:06:08]} 12. a3 {[%emt 0:06:48]} Qd7 {[%emt 0:02:01]} 13. b4 {[%emt 0:03:33]} Bh3 {[%emt 0:06:38]} 14. b5 {[%emt 0:05:21]} Bxg2 {[%emt 0:00:41]} 15. Kxg2 {[%emt 0:00:05]} Nd8 {[%emt 0:00:16]} 16. Nf3 {[%emt 0:01:09]} Bc5 {[%emt 0:13:50]} 17. e3 {[%emt 0:05:56]} dxe3 {[%emt 0:04:51]} 18. Bxe3 {[%emt 0:00:07]} Bxe3 {[%emt 0:04:18]} 19. Nxe3 {[%emt 0:00:21]} Qd6 {[%emt 0:00:27]} 20. Qb3 {[%emt 0:12:51]} Nd7 {[%emt 0:08:34]} 21. Qc3 $1 {[%emt 0:04:55]} Ne6 {[%emt 0:05:49] Weighted Error Value: White=0.04 (flawless) /Black=0.04 (flawless) .  Inaccurate:     	---       	Black=1      OK:         	White=6     	Black=8      Best:        	White=1     	---        Strong:       	White=1     	---} 1/2-1/2

[Event "Charlotte Spring IM-C 2024"]
[Site "Charlotte"]
[Date "2024.03.28"]
[Round "2.3"]
[White "Mendez Tovar, Yessica Yissel"]
[Black "Melillo, Lucius"]
[Result "0-1"]
[ECO "B35"]
[WhiteElo "1993"]
[BlackElo "2274"]
[Annotator "RC"]
[PlyCount "86"]
[EventDate "2024.03.27"]
[EventType "tourn"]
[EventCountry "USA"]
[SourceTitle "playchess.com"]
[Source "ChessBase"]
[SourceQuality "1"]
[TimeControl "5400+30"]

1. e4 {[%emt 0:02:00]} c5 {[%emt 0:02:08]} 2. Nc3 {[%emt 0:00:11]} Nc6 {[%emt 0:01:51]} 3. Nf3 {[%emt 0:00:32]} g6 {[%emt 0:02:14]} 4. d4 {[%emt 0:08:45]} cxd4 {[%emt 0:00:29]} 5. Nxd4 {[%emt 0:00:03]} Bg7 {[%emt 0:00:06]} 6. Be3 {[%emt 0:00:13]} Nf6 {[%emt 0:00:05]} 7. Bc4 {[%emt 0:07:35]} O-O {[%emt 0:00:30]} 8. Bb3 {[%emt 0:04:28]} a5 {[%emt 0:02:49]} 9. f3 {[%emt 0:05:52]} d6 {[%emt 0:00:41]} 10. O-O {[%emt 0:00:23]} Bd7 {[%emt 0:01:15]} 11. Qd2 {[%emt 0:01:29]} a4 {[%emt 0:03:31]} 12. Nxc6 {[%emt 0:09:53]} Bxc6 {[%emt 0:00:51]} 13. Bd5 {[%emt 0:08:27]} a3 {[%emt 0:03:48]} 14. b3 {[%emt 0:11:34]} Rc8 {[%emt 0:13:32]} 15. Bxc6 {[%emt 0:16:26]} Rxc6 {[%emt 0:02:42]} 16. Nb5 {[%emt 0:01:44]} d5 {[%emt 0:17:40]} 17. Rad1 {[%emt 0:01:26]} e6 {[%emt 0:00:26]} 18. c4 {[%emt 0:04:33]} Qe7 {[%emt 0:01:23]} 19. e5 {[%emt 0:05:30]} Nd7 {[%emt 0:10:41]} 20. cxd5 {[%emt 0:00:10]} exd5 {[%emt 0:00:20]} 21. f4 {[%emt 0:00:11]} Nb6 {[%emt 0:11:37]} 22. Bxb6 {[%emt 0:01:20]} Rxb6 {[%emt 0:00:15]} 23. Qxd5 {[%emt 0:00:18]} Rc8 {[%emt 0:03:52]} 24. Nd6 {[%emt 0:02:03]} Rc2 {[%emt 0:00:53]} 25. Rd2 {[%emt 0:01:44]} Rbc6 {[%emt 0:01:13]} 26. Nc4 {[%emt 0:01:31]} Rxd2 {[%emt 0:00:33]} 27. Qxd2 {[%emt 0:00:30]} Bf8 {[%emt 0:03:36]} 28. Rd1 {[%emt 0:01:41]} b5 {[%emt 0:00:54]} 29. Nd6 {[%emt 0:00:12]} Qc7 {[%emt 0:02:43]} 30. Ne8 {[%emt 0:01:51]} Qa7+ {[%emt 0:02:27]} 31. Kh1 {[%emt 0:00:10]} Be7 {[%emt 0:02:43]} 32. h3 {[%emt 0:01:34]} Kf8 {[%emt 0:01:44]} 33. Qd5 {[%emt 0:01:03]} Rc5 {[%emt 0:01:03]} 34. Qd4 {[%emt 0:00:57]} Kxe8 {[%emt 0:00:13]} 35. e6 {[%emt 0:00:02]} fxe6 {[%emt 0:02:01]} 36. b4 {[%emt 0:01:15]} Rc7 {[%emt 0:00:12]} 37. Qg7 {[%emt 0:00:53]} Bf8 {[%emt 0:05:59]} 38. Qf6 {[%emt 0:00:13]} Re7 {[%emt 0:00:00]} 39. Qc3 {[%emt 0:00:46]} Qc7 {[%emt 0:00:00]} 40. Qxa3 {[%emt 0:00:15]} Bg7 {[%emt 0:00:00]} 41. Qa8+ {[%emt 0:00:44]} Kf7 {[%emt 0:00:00]} 42. Rd3 {[%emt 0:00:32]} Qc1+ {[%emt 0:00:00]} 43. Kh2 {[%emt 0:00:07]} Qxf4+ {[%emt 0:00:00]} 0-1

[Event "Charlotte Spring IM-C 2024"]
[Site "Charlotte"]
[Date "2024.03.28"]
[Round "2.4"]
[White "Horobetz, Graham"]
[Black "Wu, Sibo"]
[Result "1-0"]
[ECO "B33"]
[WhiteElo "2252"]
[BlackElo "2142"]
[Annotator "RC"]
[PlyCount "95"]
[EventDate "2024.03.27"]
[EventType "tourn"]
[EventCountry "USA"]
[SourceTitle "playchess.com"]
[Source "ChessBase"]
[SourceQuality "1"]
[TimeControl "5400+30"]

1. e4 {[%emt 0:00:20]} c5 {[%emt 0:01:22]} 2. Nf3 {[%emt 0:00:12]} Nc6 {[%emt 0:00:11]} 3. d4 {[%emt 0:00:13]} cxd4 {[%emt 0:00:10]} 4. Nxd4 {[%emt 0:00:07]} Nf6 {[%emt 0:01:14]} 5. Nc3 {[%emt 0:00:08]} e5 {[%emt 0:00:05]} 6. Ndb5 {[%emt 0:00:07]} d6 {[%emt 0:00:07]} 7. Nd5 {[%emt 0:00:05]} Nxd5 {[%emt 0:00:09]} 8. exd5 {[%emt 0:00:06]} Nb8 {[%emt 0:00:32]} 9. a4 {[%emt 0:00:07]} Be7 {[%emt 0:00:17]} 10. Be2 {[%emt 0:00:08]} O-O {[%emt 0:01:15]} 11. Bd2 {[%emt 0:00:23]} f5 {[%emt 0:07:56]} 12. a5 {[%emt 0:00:37]} Nd7 {[%emt 0:09:10]} 13. O-O {[%emt 0:02:44]} Nf6 {[%emt 0:12:44]} 14. c4 {[%emt 0:05:41]} f4 {[%emt 0:04:23]} 15. Qc2 {[%emt 0:26:17]} Bd7 {[%emt 0:17:15]} 16. Nc3 {[%emt 0:09:34]} Kh8 {[%emt 0:02:18]} 17. f3 {[%emt 0:09:11]} Qe8 {[%emt 0:04:43]} 18. Bd3 {[%emt 0:07:06]} Qh5 {[%emt 0:01:49]} 19. Be1 {[%emt 0:18:57]} Rg8 {[%emt 0:10:31]} 20. g4 {[%emt 0:01:25]} fxg3 {[%emt 0:10:17]} 21. hxg3 {[%emt 0:00:12]} Raf8 {[%emt 0:02:33]} 22. Rf2 {[%emt 0:02:25]} Qf7 {[%emt 0:01:32]} 23. Rh2 {[%emt 0:02:46]} g6 {[%emt 0:00:11]} 24. g4 {[%emt 0:05:23]} Ne8 {[%emt 0:01:00]} 25. Be4 {[%emt 0:00:45]} Bxg4 {[%emt 0:00:45]} 26. Bd2 {[%emt 0:00:43]} Bh5 {[%emt 0:01:37]} 27. Bh6 {[%emt 0:00:52]} Ng7 {[%emt 0:09:54]} 28. Rf1 {[%emt 0:01:04]} Qf6 {[%emt 0:00:00]} 29. Rg2 {[%emt 0:03:56]} Qh4 {[%emt 0:00:00]} 30. Ne2 {[%emt 0:00:27]} Rf7 {[%emt 0:00:18]} 31. Ng3 {[%emt 0:02:11]} Nf5 {[%emt 0:00:53]} 32. Bxf5 {[%emt 0:01:33]} gxf5 {[%emt 0:00:31]} 33. Nxf5 {[%emt 0:00:08]} Rxg2+ {[%emt 0:00:26]} 34. Qxg2 {[%emt 0:00:04]} Qf6 {[%emt 0:00:13]} 35. Nxe7 {[%emt 0:00:22]} Qxe7 {[%emt 0:00:09]} 36. Bg5 {[%emt 0:00:38]} Qf8 {[%emt 0:00:20]} 37. Qh3 {[%emt 0:01:16]} Rxf3 {[%emt 0:01:05]} 38. Rxf3 {[%emt 0:00:16]} Qxf3 {[%emt 0:00:20]} 39. Qxf3 {[%emt 0:00:35]} Bxf3 {[%emt 0:00:05]} 40. Kf2 {[%emt 0:00:22]} Bg4 {[%emt 0:01:09]} 41. a6 {[%emt 0:00:29]} b6 {[%emt 0:00:45]} 42. b4 {[%emt 0:00:29]} Bd7 {[%emt 0:00:39]} 43. b5 {[%emt 0:00:30]} Bf5 {[%emt 0:00:23]} 44. Ke3 {[%emt 0:00:16]} Bh3 {[%emt 0:00:18]} 45. Kd3 {[%emt 0:00:13]} Bf1+ {[%emt 0:00:07]} 46. Kc3 {[%emt 0:00:05]} h5 {[%emt 0:00:09]} 47. Be3 {[%emt 0:00:23]} h4 {[%emt 0:00:32]} 48. Bxb6 {[%emt 0:00:07]} 1-0

[Event "Charlotte Spring IM-C 2024"]
[Site "Charlotte"]
[Date "2024.03.28"]
[Round "2.5"]
[White "Kunka, Harshid"]
[Black "Nguyen, James Le"]
[Result "1-0"]
[ECO "C87"]
[WhiteElo "2294"]
[BlackElo "2114"]
[Annotator "RC"]
[PlyCount "105"]
[EventDate "2024.03.27"]
[EventType "tourn"]
[EventCountry "USA"]
[SourceTitle "playchess.com"]
[Source "ChessBase"]
[SourceQuality "1"]
[TimeControl "5400+30"]

1. e4 {[%emt 0:00:07]} e5 {[%emt 0:00:36]} 2. Nf3 {[%emt 0:00:13]} Nc6 {[%emt 0:00:06]} 3. Bb5 {[%emt 0:00:06]} a6 {[%emt 0:00:10]} 4. Ba4 {[%emt 0:00:08]} Nf6 {[%emt 0:00:14]} 5. O-O {[%emt 0:00:11]} Be7 {[%emt 0:00:14]} 6. Re1 {[%emt 0:00:20]} d6 {[%emt 0:00:21]} 7. Bxc6+ {[%emt 0:00:41]} bxc6 {[%emt 0:00:07]} 8. d4 {[%emt 0:00:07]} exd4 {[%emt 0:00:31]} 9. Nxd4 {[%emt 0:00:09]} Bd7 {[%emt 0:00:20]} 10. c4 {[%emt 0:00:14]} O-O {[%emt 0:00:29]} 11. Nc3 {[%emt 0:00:06]} Re8 {[%emt 0:00:31]} 12. Bf4 {[%emt 0:00:52]} h6 {[%emt 0:08:49]} 13. h3 {[%emt 0:02:32]} Bf8 {[%emt 0:01:44]} 14. Bh2 {[%emt 0:03:55]} c5 {[%emt 0:02:24]} 15. Nf3 {[%emt 0:01:48]} Bc6 {[%emt 0:04:18]} 16. Qc2 {[%emt 0:05:12]} Rb8 {[%emt 0:08:23]} 17. Rad1 {[%emt 0:01:40]} Rb4 {[%emt 0:03:38]} 18. Nd2 {[%emt 0:10:48]} Qb8 {[%emt 0:01:16]} 19. b3 {[%emt 0:01:06]} Qa8 {[%emt 0:05:38]} 20. Nd5 {[%emt 0:06:20]} Nxd5 {[%emt 0:02:27]} 21. cxd5 {[%emt 0:00:24]} Bd7 {[%emt 0:02:12]} 22. Nc4 {[%emt 0:00:11]} a5 {[%emt 0:05:41]} 23. e5 {[%emt 0:01:21]} a4 {[%emt 0:01:18]} 24. Re3 {[%emt 0:05:41]} Qa6 {[%emt 0:05:58]} 25. Rde1 {[%emt 0:04:52]} dxe5 {[%emt 0:06:26]} 26. Nxe5 {[%emt 0:00:49]} axb3 {[%emt 0:03:35]} 27. axb3 {[%emt 0:00:10]} Qb5 {[%emt 0:08:31]} 28. Nxd7 {[%emt 0:15:08]} Rxe3 {[%emt 0:00:06]} 29. Nf6+ {[%emt 0:02:22]} gxf6 {[%emt 0:00:07]} 30. fxe3 {[%emt 0:01:15]} Rxb3 {[%emt 0:02:36]} 31. Bxc7 {[%emt 0:02:03]} Qd3 {[%emt 0:02:24]} 32. Qxd3 {[%emt 0:01:40]} Rxd3 {[%emt 0:00:03]} 33. e4 {[%emt 0:00:08]} c4 {[%emt 0:03:12]} 34. Rc1 {[%emt 0:00:28]} Bc5+ {[%emt 0:01:36]} 35. Kf1 {[%emt 0:00:48]} c3 {[%emt 0:01:46]} 36. Bf4 {[%emt 0:00:29]} Be3 {[%emt 0:01:54]} 37. Bxe3 {[%emt 0:00:33]} Rxe3 {[%emt 0:00:02]} 38. Kf2 {[%emt 0:00:11]} Rxe4 {[%emt 0:01:34]} 39. Rxc3 {[%emt 0:00:06]} Rd4 {[%emt 0:01:47]} 40. Rc8+ {[%emt 0:00:05]} Kg7 {[%emt 0:17:26]} 41. Rd8 {[%emt 0:00:04]} Kg6 {[%emt 0:00:00]} 42. Ke3 {[%emt 0:00:06]} Rd1 {[%emt 0:00:00]} 43. Ke4 {[%emt 0:00:31]} Re1+ {[%emt 0:00:00]} 44. Kd4 {[%emt 0:00:21]} Rd1+ {[%emt 0:00:00]} 45. Kc5 {[%emt 0:00:07]} f5 {[%emt 0:00:00]} 46. Kc6 {[%emt 0:01:37]} Kf6 {[%emt 0:00:00]} 47. d6 {[%emt 0:00:33]} Rc1+ {[%emt 0:00:00]} 48. Kd7 {[%emt 0:00:07]} Rd1 {[%emt 0:00:00]} 49. Rg8 {[%emt 0:02:22]} Rd2 {[%emt 0:00:00]} 50. Kc7 {[%emt 0:01:16]} Rc2+ {[%emt 0:00:00]} 51. Kd8 {[%emt 0:01:18]} Ke6 {[%emt 0:04:11]} 52. d7 {[%emt 0:00:12]} Ra2 {[%emt 0:00:29]} 53. Ke8 {[%emt 0:00:14]} 1-0

[Event "Charlotte Spring IM-C 2024"]
[Site "Charlotte"]
[Date "2024.03.29"]
[Round "3.1"]
[White "Nguyen, James Le"]
[Black "Eckert, Doug"]
[Result "1-0"]
[ECO "C78"]
[WhiteElo "2114"]
[BlackElo "2146"]
[Annotator "RC"]
[PlyCount "137"]
[EventDate "2024.03.27"]
[EventType "tourn"]
[EventCountry "USA"]
[SourceTitle "playchess.com"]
[Source "ChessBase"]
[SourceQuality "1"]
[TimeControl "5400+30"]

1. e4 {[%emt 0:01:44]} e5 {[%emt 0:05:40]} 2. Nf3 {[%emt 0:00:08]} Nc6 {[%emt 0:00:10]} 3. Bb5 {[%emt 0:00:04]} a6 {[%emt 0:00:11]} 4. Ba4 {[%emt 0:00:03]} Nf6 {[%emt 0:00:21]} 5. O-O {[%emt 0:00:08]} Bc5 {[%emt 0:00:05]} 6. c3 {[%emt 0:01:51]} b5 {[%emt 0:00:03]} 7. Bb3 {[%emt 0:03:06]} d6 {[%emt 0:00:08]} 8. a4 {[%emt 0:00:53]} Ba7 {[%emt 0:00:08]} 9. h3 {[%emt 0:05:02]} O-O {[%emt 0:03:02]} 10. d4 {[%emt 0:03:18]} h6 {[%emt 0:01:02]} 11. Be3 {[%emt 0:03:40]} exd4 {[%emt 0:09:52]} 12. cxd4 {[%emt 0:00:55]} bxa4 {[%emt 0:08:13]} 13. Bxa4 {[%emt 0:02:28]} Nb4 {[%emt 0:00:33]} 14. Bd2 {[%emt 0:12:37]} Rb8 {[%emt 0:01:52]} 15. Nc3 {[%emt 0:01:09]} c5 {[%emt 0:04:46]} 16. Bf4 {[%emt 0:04:50]} Bb7 {[%emt 0:04:09]} 17. d5 {[%emt 0:04:02]} c4 {[%emt 0:03:42]} 18. Qd2 {[%emt 0:05:44]} Nd3 {[%emt 0:01:45]} 19. Bc2 {[%emt 0:01:05]} Nxf4 {[%emt 0:00:26]} 20. Qxf4 {[%emt 0:00:05]} Bc5 {[%emt 0:07:45]} 21. Nd2 {[%emt 0:05:52]} Rc8 {[%emt 0:00:33]} 22. Nxc4 {[%emt 0:02:03]} Bxf2+ {[%emt 0:01:06]} 23. Rxf2 {[%emt 0:02:51]} Rxc4 {[%emt 0:00:06]} 24. Bd3 {[%emt 0:04:16]} Rc8 {[%emt 0:03:02]} 25. Raf1 {[%emt 0:03:12]} Qe7 {[%emt 0:03:39]} 26. Ne2 {[%emt 0:03:57]} Nd7 {[%emt 0:02:41]} 27. Ng3 {[%emt 0:01:14]} Ne5 {[%emt 0:00:08]} 28. Bb1 {[%emt 0:01:04]} Rc4 {[%emt 0:03:33]} 29. Nf5 {[%emt 0:01:03]} Qf6 {[%emt 0:02:40]} 30. Qd2 {[%emt 0:02:22]} Rc5 {[%emt 0:02:08]} 31. Nd4 {[%emt 0:01:48]} Qg5 {[%emt 0:03:05]} 32. Qxg5 {[%emt 0:01:18]} hxg5 {[%emt 0:00:05]} 33. Ne6 {[%emt 0:00:43]} Rfc8 {[%emt 0:04:20]} 34. Nxc5 {[%emt 0:00:35]} Rxc5 {[%emt 0:00:05]} 35. Rc2 {[%emt 0:00:54]} Rb5 {[%emt 0:00:39]} 36. Ba2 {[%emt 0:01:01]} Rb4 {[%emt 0:01:03]} 37. Re1 {[%emt 0:02:37]} a5 {[%emt 0:00:16]} 38. Re3 {[%emt 0:01:38]} a4 {[%emt 0:00:28]} 39. Ra3 {[%emt 0:05:09]} Ba6 {[%emt 0:05:50]} 40. b3 {[%emt 0:01:25]} Rxe4 {[%emt 0:00:46]} 41. Rxa4 {[%emt 0:01:10]} Re1+ {[%emt 0:00:46]} 42. Kh2 {[%emt 0:01:20]} Bd3 {[%emt 0:00:51]} 43. Rb2 {[%emt 0:01:08]} f5 {[%emt 0:02:13]} 44. b4 {[%emt 0:00:57]} f4 {[%emt 0:07:13]} 45. b5 {[%emt 0:00:29]} f3 {[%emt 0:03:52]} 46. gxf3 {[%emt 0:02:09]} Nxf3+ {[%emt 0:00:08]} 47. Kg3 {[%emt 0:02:03]} Nh4 {[%emt 0:00:15]} 48. Rab4 {[%emt 0:02:49]} Rg1+ {[%emt 0:03:08]} 49. Kf2 {[%emt 0:00:10]} Rg2+ {[%emt 0:00:08]} 50. Ke3 {[%emt 0:00:21]} Rg3+ {[%emt 0:00:04]} 51. Kd2 {[%emt 0:00:42]} Bf5 {[%emt 0:01:42]} 52. b6 {[%emt 0:02:48]} Rg2+ {[%emt 0:00:05]} 53. Kc3 {[%emt 0:00:27]} Rg3+ {[%emt 0:00:10]} 54. Kd4 {[%emt 0:01:09]} Nf3+ {[%emt 0:04:33]} 55. Kc4 {[%emt 0:00:58]} Ne5+ {[%emt 0:00:45]} 56. Kb5 {[%emt 0:00:02]} Ra3 {[%emt 0:01:26]} 57. b7 {[%emt 0:00:50]} Nd7 {[%emt 0:00:28]} 58. Kc6 {[%emt 0:01:00]} Nb8+ {[%emt 0:00:52]} 59. Kxd6 {[%emt 0:00:08]} Kf7 {[%emt 0:01:15]} 60. Kc7 {[%emt 0:00:31]} Na6+ {[%emt 0:00:00]} 61. Kb6 {[%emt 0:00:25]} Nb8 {[%emt 0:00:00]} 62. d6+ {[%emt 0:00:26]} Ke8 {[%emt 0:00:00]} 63. Bc4 {[%emt 0:00:43]} Kd8 {[%emt 0:00:06]} 64. Bb5 {[%emt 0:00:20]} Rxh3 {[%emt 0:00:37]} 65. Re2 {[%emt 0:00:43]} Bd7 {[%emt 0:00:37]} 66. Re7 {[%emt 0:00:30]} Bxb5 {[%emt 0:00:14]} 67. Rxb5 {[%emt 0:00:31]} Rd3 {[%emt 0:00:21]} 68. Rxg7 {[%emt 0:00:20]} Rxd6+ {[%emt 0:00:15]} 69. Ka7 {[%emt 0:00:02]} 1-0

[Event "Charlotte Spring IM-C 2024"]
[Site "Charlotte"]
[Date "2024.03.29"]
[Round "3.2"]
[White "Wu, Sibo"]
[Black "Kunka, Harshid"]
[Result "0-1"]
[ECO "D00"]
[WhiteElo "2142"]
[BlackElo "2294"]
[Annotator "RC"]
[PlyCount "70"]
[EventDate "2024.03.27"]
[EventType "tourn"]
[EventCountry "USA"]
[SourceTitle "playchess.com"]
[Source "ChessBase"]
[SourceQuality "1"]
[TimeControl "5400+30"]

1. d4 {[%emt 0:00:36]} d5 {[%emt 0:00:08]} 2. Bf4 {[%emt 0:00:10]} Nf6 {[%emt 0:00:08]} 3. e3 {[%emt 0:00:06]} c5 {[%emt 0:00:14]} 4. Nd2 {[%emt 0:00:22]} Nc6 {[%emt 0:00:20]} 5. c3 {[%emt 0:00:55]} Bf5 {[%emt 0:00:24]} 6. Qb3 {[%emt 0:04:53]} Qc8 {[%emt 0:05:31]} 7. Ngf3 {[%emt 0:03:42]} c4 {[%emt 0:00:19]} 8. Qd1 {[%emt 0:01:50]} Nh5 {[%emt 0:00:22]} 9. Nh4 {[%emt 0:12:43]} Nxf4 {[%emt 0:01:40]} 10. exf4 {[%emt 0:00:07]} Bd7 {[%emt 0:02:10]} 11. g3 {[%emt 0:02:22]} e6 {[%emt 0:00:07]} 12. Bg2 {[%emt 0:00:54]} Be7 {[%emt 0:00:06]} 13. Nhf3 {[%emt 0:01:34]} b5 {[%emt 0:00:05]} 14. O-O {[%emt 0:01:00]} O-O {[%emt 0:00:20]} 15. h4 {[%emt 0:03:35]} b4 {[%emt 0:00:23]} 16. Ne5 {[%emt 0:05:09]} Nxe5 {[%emt 0:00:06]} 17. fxe5 {[%emt 0:00:07]} bxc3 {[%emt 0:00:16]} 18. bxc3 {[%emt 0:00:12]} Rb8 {[%emt 0:00:04]} 19. a4 {[%emt 0:07:03]} Qc7 {[%emt 0:02:52]} 20. Qc2 {[%emt 0:04:09]} Qa5 {[%emt 0:00:07]} 21. h5 {[%emt 0:08:49]} h6 {[%emt 0:00:21]} 22. f4 {[%emt 0:00:59]} Rb6 {[%emt 0:01:52]} 23. Rfb1 {[%emt 0:11:45]} Rfb8 {[%emt 0:00:21]} 24. Rxb6 {[%emt 0:00:33]} axb6 {[%emt 0:00:17]} 25. Ra2 {[%emt 0:06:22]} Ra8 {[%emt 0:01:23]} 26. g4 {[%emt 0:00:31]} Bxa4 {[%emt 0:00:46]} 27. Qc1 {[%emt 0:00:56]} b5 {[%emt 0:00:07]} 28. Nf3 {[%emt 0:00:28]} b4 {[%emt 0:01:45]} 29. f5 {[%emt 0:01:12]} b3 {[%emt 0:11:43]} 30. Ra1 {[%emt 0:00:56]} Qd8 {[%emt 0:01:30]} 31. f6 {[%emt 0:00:52]} gxf6 {[%emt 0:00:43]} 32. Qxh6 {[%emt 0:05:52]} fxe5 {[%emt 0:01:31]} 33. dxe5 {[%emt 0:02:02]} b2 {[%emt 0:02:14]} 34. Rb1 {[%emt 0:00:16]} Qb6+ {[%emt 0:00:19]} 35. Kh2 {[%emt 0:00:07]} Bc2 {[%emt 0:00:18]} 0-1

[Event "Charlotte Spring IM-C 2024"]
[Site "Charlotte"]
[Date "2024.03.29"]
[Round "3.3"]
[White "Melillo, Lucius"]
[Black "Horobetz, Graham"]
[Result "1-0"]
[ECO "B90"]
[WhiteElo "2274"]
[BlackElo "2252"]
[Annotator "RC"]
[PlyCount "73"]
[EventDate "2024.03.27"]
[EventType "tourn"]
[EventCountry "USA"]
[SourceTitle "playchess.com"]
[Source "ChessBase"]
[SourceQuality "1"]
[TimeControl "5400+30"]

1. e4 {[%emt 0:00:00]} c5 {[%emt 0:00:16]} 2. Nf3 {[%emt 0:00:03]} d6 {[%emt 0:00:12]} 3. d4 {[%emt 0:00:03]} cxd4 {[%emt 0:00:09]} 4. Nxd4 {[%emt 0:00:03]} Nf6 {[%emt 0:00:09]} 5. Nc3 {[%emt 0:00:02]} a6 {[%emt 0:00:08]} 6. Rg1 {[%emt 0:00:02]} e5 {[%emt 0:00:53]} 7. Nb3 {[%emt 0:00:02]} h5 {[%emt 0:01:43]} 8. Bg5 {[%emt 0:00:07]} Be6 {[%emt 0:01:40]} 9. Qd2 {[%emt 0:00:06]} Nbd7 {[%emt 0:00:50]} 10. O-O-O {[%emt 0:00:11]} Rc8 {[%emt 0:07:15]} 11. f4 {[%emt 0:01:22]} Qc7 {[%emt 0:04:58]} 12. Bd3 {[%emt 0:05:58]} Be7 {[%emt 0:17:36]} 13. h3 {[%emt 0:01:34]} b5 {[%emt 0:02:51]} 14. Kb1 {[%emt 0:02:30]} Nb6 {[%emt 0:05:03]} 15. f5 {[%emt 0:01:21]} Bd7 {[%emt 0:03:10]} 16. g4 {[%emt 0:03:54]} Bc6 {[%emt 0:05:11]} 17. Bxf6 {[%emt 0:08:13]} gxf6 {[%emt 0:00:54]} 18. Rdf1 {[%emt 0:07:16]} b4 {[%emt 0:08:18]} 19. Nd5 {[%emt 0:14:45]} Nxd5 {[%emt 0:03:40]} 20. exd5 {[%emt 0:00:06]} Bxd5 {[%emt 0:09:10]} 21. Bxa6 {[%emt 0:00:33]} Bb7 {[%emt 0:04:03]} 22. Bb5+ {[%emt 0:00:21]} Bc6 {[%emt 0:06:30]} 23. Qxb4 {[%emt 0:00:29]} hxg4 {[%emt 0:00:26]} 24. hxg4 {[%emt 0:01:03]} Kf8 {[%emt 0:02:07]} 25. Bxc6 {[%emt 0:01:00]} Qxc6 {[%emt 0:00:05]} 26. Qd2 {[%emt 0:00:37]} Ke8 {[%emt 0:05:10]} 27. c3 {[%emt 0:12:33]} Qa6 {[%emt 0:01:46]} 28. Qd5 {[%emt 0:06:06]} Rg8 {[%emt 0:01:26]} 29. Rd1 {[%emt 0:02:29]} Rc4 {[%emt 0:02:00]} 30. Nd2 {[%emt 0:09:51]} Rcxg4 {[%emt 0:02:53]} 31. Rxg4 {[%emt 0:00:04]} Rxg4 {[%emt 0:00:06]} 32. Ne4 {[%emt 0:00:13]} Rf4 {[%emt 0:01:52]} 33. c4 {[%emt 0:01:01]} Kf8 {[%emt 0:02:10]} 34. Rh1 {[%emt 0:02:08]} Rxf5 {[%emt 0:00:25]} 35. Ng3 {[%emt 0:00:45]} Rg5 {[%emt 0:01:56]} 36. Rh8+ {[%emt 0:00:54]} Rg8 {[%emt 0:00:06]} 37. Qh1 {[%emt 0:00:36]} 1-0

[Event "Charlotte Spring IM-C 2024"]
[Site "Charlotte"]
[Date "2024.03.28"]
[Round "3.4"]
[White "Komarov, Dimitri"]
[Black "Mendez Tovar, Yessica Yissel"]
[Result "1-0"]
[ECO "D25"]
[WhiteElo "2448"]
[BlackElo "1993"]
[Annotator "TA"]
[PlyCount "29"]
[EventDate "2024.03.27"]
[EventType "tourn"]
[EventCountry "USA"]
[SourceTitle "playchess.com"]
[Source "ChessBase"]
[SourceQuality "1"]
[TimeControl "5400+30"]

{[%evp 9,29,60,94,94,133,126,124,118,137,125,132,137,147,154,155,168,142,135,212,201,225,218]} 1. d4 {[%emt 0:00:03]} d5 {[%emt 0:06:10]} 2. Nf3 {[%emt 0:00:13]} Nf6 {[%emt 0:00:25]} 3. c4 {[%emt 0:00:13]} dxc4 {[%emt 0:00:21]} 4. e3 {[%emt 0:01:46]} Nc6 {[%emt 0:02:50]} 5. Bxc4 {[%emt 0:01:18]} e5 {[%emt 0:23:47] [#]} 6. Qb3 $1 {[%emt 0:08:14]} ({Of course not} 6. dxe5 Qxd1+ 7. Kxd1 Ng4 $15) ({Not} 6. Nxe5 Nxe5 7. dxe5 Qxd1+ 8. Kxd1 Ng4 $15) 6... Bb4+ {[%emt 0:03:31]} 7. Bd2 {[%emt 0:01:51]} Bxd2+ {[%emt 0:07:01]} 8. Nbxd2 {[%emt 0:00:18] White is better.} O-O {[%emt 0:01:00]} 9. dxe5 {[%emt 0:05:19] White is more active.} Ng4 {[%emt 0:03:45]} 10. e6 {[%emt 0:00:18] White is clearly better.} fxe6 {[%emt 0:01:24]} 11. Bxe6+ {[%emt 0:00:33]} Kh8 {[%emt 0:00:08]} 12. Bxg4 {[%emt 0:12:37]} Bxg4 {[%emt 0:00:20]} 13. Qxb7 {[%emt 0:01:42]} Qd6 {[%emt 0:03:43]} (13... Rf6 $16 {is a better defense.}) 14. Rc1 $18 {[%emt 0:04:25]} Nb4 {[%emt 0:06:07] [#] White must now prevent ...Nd3+.} 15. O-O {[%emt 0:59:10] Weighted Error Value: White=0.02 (flawless) /Black=0.21 (precise) .  Mistake:       	---       	Black=1      Inaccurate:     	---       	Black=1      OK:         	White=3     	Black=2      Best:        	White=2     	Black=1} ({Weaker is} 15. Qxc7 Nd3+ 16. Kf1 Qf6 $11) 1-0